Cogmind - Beta 16 @@@ ROGUE MODE // 2025.11.04 @ 21:34:54 Player: btrs Result: Destroyed by G-50 Soldier with Heavy Laser Performance ------------- Evolutions (4) 2000 Regions Visited (5) 1000 Robots Destroyed (56) 280 Value Destroyed (1969) 1969 Prototype IDs (11) 220 Alien Tech Used (0) 0 Bonus (823) 823 TOTAL SCORE: 6292 Bonus ------- Follower Combat Kills 37 Registered with UFD 300 Met Optimus in HQ 500 Friendly Fire -14 Cogmind --------- Core Integrity 0/850 Matter 89/300 Energy 148/150 System Corruption 36% Temperature Cool (31) Movement Flying (34) Location -6/Lower Caves Parts ------- > --- POWER (2) -------- Micro Nuclear Core > --- PROPULSION (5) --- VTOL Module Nuclear Pulse Thruster > --- UTILITY (6) ------ (None) > --- WEAPON (2) ------- Axe > --- INVENTORY (5) ---- Scrap Suit Heavy Assault Rifle Autogun Vortex Trap Peak State ------------ > --- POWER ------------ Improved Deuterium Engine Cold Fusion Reactor > --- PROPULSION ------- Carbon-fiber Leg Flexi-carbon Leg Flexi-carbon Leg Wheel > --- UTILITY ---------- Advanced Heat Sink Improved Cooling System High-capacity Storage Unit Seismic Detector Improved Utility Shielding Improved Medium Armor Plating > --- WEAPON ----------- Heavy Laser Heavy Machine Gun > --- INVENTORY -------- Ion Engine Scrap Suit Heat Sink Improved Heat Sink Kinecellerator Improved Light Armor Plating EM Pulse Gun Heavy Laser Heavy Assault Rifle Shotgun Gauss Rifle Heavy Machine Gun Grenade Launcher Grenade Launcher Axe Vortex Trap Vortex Trap Vortex Trap DRS Beacon [Rating: 56] Favorites ----------- Power Nuclear Core Engine Light Ion Engine Power Core Nuclear Core Reactor Cold Fusion Reactor Propulsion Light Treads Treads Light Treads Leg Flexi-carbon Leg Wheel Wheel Flight Unit Nuclear Pulse Thruster Utility High-capacity Storage Unit Device Sensor Array Storage High-capacity Storage Unit Processor Signal Interpreter Protection Improved Utility Shielding Weapon Assault Cannon Energy Gun Particle Gun Energy Cannon Heavy Ion Cannon Ballistic Gun High-powered Shotgun Ballistic Cannon Assault Cannon Launcher Grenade Launcher Slashing Weapon Axe Build | -11 -10 -10 -8 -6 -6 ------- Run | Yrd Mat Sub Scr Fac Low Slots Evolved 8 | . . . . 8 . Power 1 | . . . . 1 . Propulsion 3 | . . . . 3 . Utility 4 | . . . . 4 . Weapon . | . . . . . . Parts Attached 79 | 7 10 3 15 43 1 Power 15 | 1 3 1 2 8 . Engine 10 | 1 2 1 . 6 . Core 4 | . 1 . 2 1 . Reactor 1 | . . . . 1 . Propulsion 16 | 2 . . 5 8 1 Treads 7 | 2 . . 5 . . Leg 3 | . . . . 3 . Wheel 4 | . . . . 4 . Hover . | . . . . . . Flight 2 | . . . . 1 1 Utility 24 | 1 2 1 3 17 . Device 12 | . 1 1 . 10 . Storage 3 | 1 1 . 1 . . Processor 3 | . . . 2 1 . Hackware . | . . . . . . Protection 6 | . . . . 6 . Artifact . | . . . . . . Weapon 24 | 3 5 1 5 10 . Energy Gun 10 | 2 2 . . 6 . Energy Cannon 2 | . . . 2 . . Ballistic Gun 8 | 1 1 1 2 3 . Ballistic Cannon 1 | . . . 1 . . Launcher 2 | . 2 . . . . Special Weapon . | . . . . . . Impact Weapon . | . . . . . . Slashing Weapon 1 | . . . . 1 . Piercing Weapon . | . . . . . . Special Melee Weapon . | . . . . . . Unidentified Prototypes 1 | . . . . 1 . Corrupted Parts 7 | . . . . 7 . System Corruption 32 | . . . . 32 . Parts Lost 41 | . 3 . 2 36 . Power 8 | . 1 . . 7 . Propulsion 9 | . . . . 9 . Utility 10 | . . . . 10 . Weapon 14 | . 2 . 2 10 . Highest Loss Streak 13 | . 1 . 1 13 . To Critical Strikes . | . . . . . . Average Backups 12 | . 5 8 16 12 2 Power 1 | . 1 2 2 . . Propulsion . | . . . . . . Utility 4 | . 1 2 5 4 1 Weapon 5 | . 2 4 7 7 1 Tool/Special . | . . . . . . Unused Backups 6 | . . . 2 3 1 Power 1 | . . . . 1 . Propulsion . | . . . . . . Utility 1 | . . . 1 . . Weapon 4 | . . . 1 2 1 Tool/Special . | . . . . . . Average Slot Usage (%) 91 | . 99 100 99 72 17 Engine 3 | . 8 7 1 6 . Core 8 | . 5 7 12 . 6 Treads 22 | . 27 28 27 4 . Leg 1 | . . . . 10 . Device 6 | . 13 14 1 14 . Storage 11 | . 14 14 14 5 . Processor 6 | . . . 12 2 . Protection 1 | . . . . 7 . Energy Gun 8 | . 12 14 7 5 . Ballistic Gun 7 | . 10 14 7 3 . Ballistic Cannon 6 | . . . 12 . . Launcher 1 | . 5 . . 1 . Peak Build Rating 56 | 6 10 11 33 56 15 Average Rating 21 | 4 7 10 20 41 11 On Entrance 12 | . 6 10 11 33 13 Avg Prop Armor Cover (%) 4 | . . . . 4 . Naked Turns . | . . . . . . Heaviest Build 88 | 11 17 19 61 88 9 Greatest Support 56 | 40 40 40 50 56 10 Greatest Overweight (x) 18 | . . . 2 18 1 Average Overweight (x) . | . . . . 1 . Largest Inventory Capacity 20 | 8 8 8 20 20 5 Average Capacity 16 | 6 8 8 19 18 5 Most Carried 20 | 2 8 8 20 20 5 Average Carried 13 | . 5 8 17 16 4 Final Capacity 20 | 8 8 8 20 5 5 Final Carried 20 | 2 8 8 20 5 5 Scrap Suit Usage (%) 4 | . . . . 20 . Parts Cannibalized 2 | . . . . 2 . Class Distribution -------------------- 82% | Mutant 17% | Scavenger-Mutant Dominant Class ---------------- Mutant | -10/Materials Scavenger-Mutant | -10/Subcaves Mutant | -8/Scraptown Scavenger-Mutant | -6/Factory Mutant | -6/Lower Caves Resources | -11 -10 -10 -8 -6 -6 ----------- Run | Yrd Mat Sub Scr Fac Low Matter Collected 1862 | 229 366 41 269 930 27 Remotely . | . . . . . . Salvage Created 2370 | . 648 41 70 1611 . Parts 116 | . 32 4 . 80 . Haulers Intercepted . | . . . . . . Recyclers Shooed 10 | . 2 . . 8 . Parts Field Recycled . | . . . . . . Retrieved Matter . | . . . . . . Parts Self-Destructed 2 | . . . . . 2 Prevented 2 | . . . . . 2 Parts Restored . | . . . . . . Kills | -11 -10 -10 -8 -6 -6 ------- Run | Yrd Mat Sub Scr Fac Low Combat Hostiles Destroyed 37 | . 13 1 1 22 . Guns 27 | . 11 1 . 15 . Cannons 3 | . . . 1 2 . AOE 6 | . 2 . . 4 . Classes Destroyed 13 | . 6 1 1 5 . Worker 8 | . 1 . . 7 . Builder 3 | . . . . 3 . Tunneler 1 | . . . . 1 . Recycler 3 | . 1 . . 2 . Mechanic 1 | . 1 . . . . Watcher 3 | . 3 . . . . Swarmer 2 | . 2 . . . . Grunt 22 | . 11 . . 11 . Sentry 1 | . . . . 1 . Hunter 6 | . . . . 6 . Programmer 4 | . . . . 4 . Subdweller 1 | . . 1 . . . Scrapper 1 | . . . 1 . . Best Kill Streak 6 | . 3 1 1 6 . Combat Bots Only 3 | . 2 1 1 3 . Max Kills in Single Turn 2 | . 2 1 1 2 . Gunslinging . | . . . . . . Exploded 1 | . 1 . . 1 . Melee . | . . . . . . Uniques/NPCs Destroyed . | . . . . . . Combat | -11 -10 -10 -8 -6 -6 -------- Run | Yrd Mat Sub Scr Fac Low Hostile Shots Fired 435 | . 66 2 29 323 15 Missed 90 | . 18 . 10 59 3 Hits 345 | . 48 2 19 264 12 Melee 5 | . . . 5 . . Projectile 340 | . 48 2 14 264 12 Critical Strikes 13 | . . . 2 10 1 Actively Blocked 1 | . . . . 1 . Damage Taken 5814 | . 605 41 373 4617 178 Core 962 | . 71 . 23 748 120 Absorbed by Shields . | . . . . . . Redirected to Shielding 108 | . . . . 108 . Regen/Repaired (Parts) 132 | . 124 . . 8 . Core Remaining (%) 81 | 100 . . 62 . . Volleys Fired 206 | . 75 3 3 125 . Largest 2 | . 2 2 2 2 . Hottest 138 | . 90 85 125 138 . Shots Fired 395 | . 150 5 6 234 . Gun 359 | . 144 5 . 210 . Cannon 19 | . . . 6 13 . Launcher 17 | . 6 . . 11 . Special . | . . . . . . Kinetic 168 | . 65 3 1 99 . Thermal 149 | . 72 2 5 70 . Explosive 17 | . 6 . . 11 . Electromagnetic 61 | . 7 . . 54 . Robot Hit Streak 16 | . 16 2 8 14 . Robot Miss Streak 4 | . 4 2 . 4 . Penetration Max . | . . . . . . Secondary Targets 3 | . 1 . . 2 . Max Gunslinging Chain 1 | . 1 . . 1 . Shots Hit Robots 258 | . 97 3 6 152 . Core Hits 123 | . 42 2 1 78 . Critical Kills . | . . . . . . Critical Parts Destroyed . | . . . . . . Critical Strikes 9 | . 7 . . 2 . Burn 7 | . 6 . . 1 . Corrupt 2 | . 1 . . 1 . Melee Attacks 12 | . . . . 9 3 Impact . | . . . . . . Slashing 12 | . . . . 9 3 Piercing . | . . . . . . Sneak Attacks 3 | . . . . 3 . Combat Hostiles . | . . . . . . Follow-up Attacks . | . . . . . . Damage Inflicted 5731 | . 1210 39 153 4329 . Guns 4335 | . 1081 39 . 3215 . Cannons 396 | . . . 153 243 . Explosions 753 | . 129 . . 624 . Melee 243 | . . . . 243 . Ramming 4 | . . . . 4 . Kinetic 1998 | . 419 25 28 1526 . Thermal 1870 | . 597 14 125 1134 . Explosive 753 | . 129 . . 624 . Electromagnetic 863 | . 65 . . 798 . Impact . | . . . . . . Slashing 243 | . . . . 243 . Piercing . | . . . . . . Highest Corruption 36 | . 7 7 . 36 36 Average Corruption 16 | . 4 7 . 26 36 Corruption Purged . | . . . . . . Corruption Blocked . | . . . . . . Effects 131 | . 35 6 . 75 15 Message Errors 40 | . 10 1 . 22 7 Matter Fused 31 | . 10 1 . 16 4 Heat Flow Errors 14 | . 3 . . 11 . Energy Discharges 14 | . 2 1 . 9 2 Parts Rejected 2 | . 1 . . 1 . Data Loss (minor) 13 | . 7 2 . 3 1 Data Loss (major) 3 | . . . . 3 . Misfires 2 | . 1 1 . . . Alerts 2 | . . . . 2 . Misdirections 3 | . . . . 2 1 Weapon Failures 7 | . 1 . . 6 . Overload Shots . | . . . . . . Overflow Damage 73 | . . . 19 54 . Projectiles 19 | . . . 19 . . Explosions 10 | . . . . 10 . Melee 44 | . . . . 44 . Knockbacks 1 | . . . 1 . . Impact . | . . . . . . Kinetic 1 | . . . 1 . . Secondary . | . . . . . . Self-Inflicted Damage 199 | . . . . 199 . Shots 9 | . . . . 9 . Rammed 1 | . . . . 1 . Targets Rammed 1 | . . . . 1 . Kicked . | . . . . . . Crushed . | . . . . . . Highest Temperature 486 | . 291 . 239 486 . Average Temperature 127 | . 72 . 106 214 . Received Heat Transfer 1091 | . 321 . 200 543 27 Effects 13 | . 2 . . 11 . Shutdowns 3 | . . . . 3 . Energy Bleed 2 | . . . . 2 . Interference 3 | . 2 . . 1 . Matter Decay 1 | . . . . 1 . Short Circuit 1 | . . . . 1 . Damage (major) 3 | . . . . 3 . Siege Activations . | . . . . . . Martial Activations . | . . . . . . Shielding Activations . | . . . . . . Robots Disrupted . | . . . . . . Combat Hostiles . | . . . . . . Robots Corrupted 1 | . . . . 1 . Combat Hostiles 1 | . . . . 1 . Parts Fried 7 | . . . . 7 . Impact Corruptions . | . . . . . . Robots Melted . | . . . . . . Combat Hostiles . | . . . . . . Parts Melted 2 | . 1 . . 1 . Heat Transferred 4380 | . 2183 37 125 2035 . Parts Sabotaged . | . . . . . . Parts Stolen . | . . . . . . Parts Stripped . | . . . . . . Power Chain Reactions . | . . . . . . Alert | -11 -10 -10 -8 -6 -6 ------- Run | Yrd Mat Sub Scr Fac Low Maximum Alert Level . | . . . . . . Low Security (%) 100 | 100 100 . . 100 . Level 1 . | . . . . . . Level 2 . | . . . . . . Level 3 . | . . . . . . Level 4 . | . . . . . . Level 5 . | . . . . . . High Security . | . . . . . . Max Security . | . . . . . . Peak Influence 178 | . 86 . . 178 . Initial . | . . . . . . Average 29 | . 15 . . 46 . Influence Increases 1354 | . 388 . . 891 75 Destroy 0b10 Robot/C 720 | . 260 . . 460 . Destroy 0b10 Robot/NC 95 | . 30 . . 65 . Destroy Leader 196 | . 66 . . 130 . Allied During Kill 2 | . . . . 2 . Trap Triggered on 0b10 10 | . . . . 10 . Successful Hack 50 | . 8 . . 42 . Disable Machine 135 | . . . . 135 . Destroy Structure 71 | . 24 . . 47 . Lose Combat Pursuer 75 | . . . . . 75 Influence Decreases 1303 | . 388 . . 722 193 Entered New Map 63 | . . . . . 63 Time Decay 847 | . 359 . . 358 130 Lost Part 359 | . 29 . . 330 . Lost Ally 34 | . . . . 34 . Squads Dispatched 15 | . 2 . . 13 . Investigation 4 | . . . . 4 . Extermination 4 | . . . . 4 . Reinforcement 4 | . 2 . . 2 . Assault . | . . . . . . Garrison 3 | . . . . 3 . Intercept . | . . . . . . Searches Triggered . | . . . . . . Construction Impeded 1 | . . . . 1 . Haulers Reinforced 1 | . . . . 1 . Active Scanning Responses . | . . . . . . Cargo Convoy Interrupts . | . . . . . . Stealth | -11 -10 -10 -8 -6 -6 --------- Run | Yrd Mat Sub Scr Fac Low Distress Signals 4 | . 2 . . 2 . Communications Jammed . | . . . . . . Distress Signals . | . . . . . . Times Spotted 85 | . 22 1 23 32 7 Peak Tracking Total 6 | . 3 1 6 4 4 Tactical Retreats 4 | . . . 1 . 3 Traps | -11 -10 -10 -8 -6 -6 ------- Run | Yrd Mat Sub Scr Fac Low Traps Triggered 5 | . 5 . . . . Indirectly . | . . . . . . Trap Hack Attempts . | . . . . . . Triggered . | . . . . . . Disarmed . | . . . . . . Reprogrammed . | . . . . . . Reused 1 | . . . . 1 . Traps Extracted . | . . . . . . Installed 1 | . . . . 1 . Triggered 1 | . . . . 1 . Most Traps Carried 3 | . . . 3 3 1 Machines | -11 -10 -10 -8 -6 -6 ---------- Run | Yrd Mat Sub Scr Fac Low Machines Disabled 9 | . . . . 9 . Max in Single Turn 4 | . . . . 4 . Machines Repaired . | . . . . . . Machines Dismantled . | . . . . . . Machines Sabotaged . | . . . . . . Overloaded Fab Kills . | . . . . . . Hacking | -11 -10 -10 -8 -6 -6 --------- Run | Yrd Mat Sub Scr Fac Low Machines Accessed 21 | . 6 . 9 6 . Terminals 7 | . 4 . . 3 . Fabricators . | . . . . . . Repair Stations 1 | . 1 . . . . Recycling Units 3 | . 1 . . 2 . Scanalyzers 1 | . . . . 1 . Garrison Access . | . . . . . . Total Hacks 97 | . 15 . 71 11 . Successful 83 | . 7 . 71 5 . Failed 14 | . 8 . . 6 . Catastrophic 1 | . 1 . . . . Database Lockouts . | . . . . . . Manual 7 | . 3 . . 4 . Terminals 14 | . 9 . . 5 . Fabricators . | . . . . . . Repair Stations 3 | . 3 . . . . Recycling Units 6 | . 3 . . 3 . Scanalyzers 3 | . . . . 3 . Garrison Access . | . . . . . . Terminal Hacks 76 | . 3 . 71 2 . Record 72 | . . . 71 1 . Robot Analysis 1 | . 1 . . . . Prototype ID Bank 1 | . 1 . . . . Branch Access Points 2 | . 1 . . 1 . Fabricator Hacks . | . . . . . . Repair Station Hacks 2 | . 2 . . . . Scan Component 1 | . 1 . . . . Repair 1 | . 1 . . . . Recycling Unit Hacks 2 | . 2 . . . . Process 1 | . 1 . . . . Retrieve Components 1 | . 1 . . . . Scanalyzer 1 | . . . . 1 . Insert Component 1 | . . . . 1 . Garrison Access Hacks . | . . . . . . Unauthorized Hacks 2 | . . . . 2 . Terminals . | . . . . . . Fabricators . | . . . . . . Repair Stations . | . . . . . . Recycling Units 2 | . . . . 2 . Fedlink 1 | . . . . 1 . Scrapoids 1 | . . . . 1 . Scanalyzers . | . . . . . . Garrison Access . | . . . . . . Data Cores Recovered . | . . . . . . Used . | . . . . . . Hacking Detections 9 | . 5 . . 4 . Full Trace Events 5 | . 3 . . 2 . Feedback Events . | . . . . . . Feedback Blocked . | . . . . . . Robot Schematics Acquired . | . . . . . . Robots Built . | . . . . . . Authchips . | . . . . . . Time . | . . . . . . Total Robot Build Rating . | . . . . . . Part Schematics Acquired . | . . . . . . Parts Built . | . . . . . . Authchips . | . . . . . . Time . | . . . . . . Total Part Build Rating . | . . . . . . Part Studies Acquired . | . . . . . . Parts Repaired 1 | . 1 . . . . Time 26 | . 26 . . . . Parts Recycled . | . . . . . . Recycled Matter . | . . . . . . Retrieved Matter . | . . . . . . Retrieved Components . | . . . . . . Parts Scanalyzed . | . . . . . . Part Schematics Acquired . | . . . . . . Parts Damaged . | . . . . . . Bothacking | -11 -10 -10 -8 -6 -6 ------------ Run | Yrd Mat Sub Scr Fac Low Used RIF Installer . | . . . . . . Robots Hacked . | . . . . . . Non-combat . | . . . . . . Combat . | . . . . . . Robot Hacks Applied . | . . . . . . Relay Couplers Released . | . . . . . . Fabnet Peak Effective % . | . . . . . . Robots Rewired . | . . . . . . Allies Hacked . | . . . . . . Hacks Repelled . | . . . . . . Allies | -11 -10 -10 -8 -6 -6 -------- Run | Yrd Mat Sub Scr Fac Low Total Allies 5 | . . . . 5 . Largest Group 5 | . . . . 5 . Highest-Rated Group 143 | . . . . 143 . Highest-Rated Ally 31 | . . . . 31 . Total Orders . | . . . . . . Ally Attacks 21 | . . . . 21 . Total Damage 360 | . . . . 360 . Kills 1 | . . . . 1 . Allies Corrupted . | . . . . . . Allies Melted 2 | . . . 2 . . Intel | -11 -10 -10 -8 -6 -6 ------- Run | Yrd Mat Sub Scr Fac Low Active Infowar (turns) 3311 | . 1810 174 409 918 . Optics 508 | . . 99 409 . . Sensors 1885 | . 1810 75 . . . Terrain 235 | . . . . 235 . Seismic 918 | . . . . 918 . Robot Analysis Total 1 | . 1 . . . . Derelict Logs Recovered 2 | . . . 2 . . Drone Launches . | . . . . . . Drone Recoveries . | . . . . . . Exploration | -11 -10 -10 -8 -6 -6 ------------- Run | Yrd Mat Sub Scr Fac Low Turns Passed 8901 | 122 1850 174 4758 1725 272 Spaces Moved 4363 | 72 906 102 1980 760 543 Core 223 | 4 . . . 219 . Treads 3202 | 68 906 102 1980 146 . Legs 302 | . . . . 302 . Wheels 86 | . . . . 86 . Hover . | . . . . . . Flight 550 | . . . . 7 543 Fastest Speed 34 | 50 160 160 160 40 34 Average Speed 179 | 153 160 160 236 155 41 Slowest Speed 950 | 160 160 160 320 950 120 Overloaded Moves . | . . . . . . Propulsion Burnouts . | . . . . . . Robots Hopped . | . . . . . . Potential Cave-ins 3 | . . . . 3 . Cave-ins Triggered . | . . . . . . Exploration Rate (%) 45 | 5 99 10 88 21 49 Regions Visited 5 Branch Regions 3 Pre-discovered Areas 1 | . . . 1 . . Known Exits Taken 2 | . . . 1 1 . Unknown Exits Taken 3 | 1 1 1 . . . Scrap Searched 4 | . . . 4 . . Spaces Dug 8 | . . . . 6 2 Terrain Destroyed 70 | . 24 . . 44 2 Melee 8 | . . . . 6 2 Projectile 1 | . . . . 1 . AOE 61 | . 24 . . 37 . Terrain Rammed . | . . . . . . Walls Destroyed . | . . . . . . Machines Disabled . | . . . . . . Actions | -11 -10 -10 -8 -6 -6 --------- Run | Yrd Mat Sub Scr Fac Low Total 5026 | 80 1158 107 2049 1047 585 Wait 275 | . 154 . 13 75 33 Move 4358 | 71 905 101 1979 759 543 Hop . | . . . . . . Pick Up 43 | 2 8 . 19 12 2 Fast Attach 34 | 6 3 . 2 22 1 Attach 25 | . 4 . 4 16 1 Detach 3 | . . . 2 1 . Swap 44 | 1 9 3 13 18 . Drop 24 | . . . 14 8 2 Fire 206 | . 75 3 3 125 . Melee 12 | . . . . 9 3 Ram 1 | . . . . 1 . Kick . | . . . . . . Crush . | . . . . . . Escape Stasis . | . . . . . . Rewire . | . . . . . . Trap 1 | . . . . 1 . Miscellaneous . | . . . . . . Route ------- -11/Scrapyard -10/Materials (discovered 6 exits: [*Mat x3] / *Min x2 / [*Sub]) -10/Subcaves -8/Scraptown (discovered 2 exits: *Fac x2) -6/Factory (discovered 2 exits: *Low x2) -6/Lower Caves History --------- Turn | Location | Event 8 | -11/Scrapyard | Discovered new exit (range 14) 123 | -11/Scrapyard | Entered Materials 314 | -10/Materials | Build established: Mutant 357 | -10/Materials | Identified exit to Mines 624 | -10/Materials | Discovered new exit (range 14) 811 | -10/Materials | Repaired Lgt. Treads 937 | -10/Materials | Discovered new exit (range 12) 1173 | -10/Materials | Discovered new exit (range 16) 1355 | -10/Materials | Discovered new exit (range 12) 1973 | -10/Materials | Entered Subcaves 1974 | -10/Subcaves | Approached by a straggling Scientist 2139 | -10/Subcaves | Scientist uncovered a shortcut to Scraptown 2147 | -10/Subcaves | Entered Scraptown 2147 | -8/Scraptown | System corruption cleaned by C-Scrubber 2337 | -8/Scraptown | Build established: Scavenger-Mutant 2799 | -8/Scraptown | Build established: Mutant 3071 | -8/Scraptown | Visited UFD Registry 3102 | -8/Scraptown | Visited Cyclists 3270 | -8/Scraptown | Visited IN-MT5's Study 3373 | -8/Scraptown | Heard Great Nut preacher, LISTEN AND RECITE! 3793 | -8/Scraptown | Visited Fellowship of the Rings 3857 | -8/Scraptown | Visited Spacefarers 4054 | -8/Scraptown | Visited Shadow of the Wyrm 4184 | -8/Scraptown | Scanned Subdweller tech in exchange for log data 4198 | -8/Scraptown | Learned Factory terminal intel 4201 | -8/Scraptown | Learned location of Quarantine (-3) 4239 | -8/Scraptown | Discovered new exit (range 5) 4890 | -8/Scraptown | Visited Comm Corps 5070 | -8/Scraptown | Visited Symbiants 5158 | -8/Scraptown | Registered with UFD as "Kineticycle" 5290 | -8/Scraptown | Entered Cyclist Reading Room 5420 | -8/Scraptown | Visited Science Guys 5549 | -8/Scraptown | Visited A0-MCA Data Center 5563 | -8/Scraptown | Given a B- rating by A0-MCA 5571 | -8/Scraptown | Found A0-MCA's Component Scanner 5753 | -8/Scraptown | Visited Junk Repository 6317 | -8/Scraptown | Visited Derelict Rescue Squad 6337 | -8/Scraptown | Found DRS Beacon 6417 | -8/Scraptown | Met Optimus 6417 | -8/Scraptown | Accepted into 0bPrime 6614 | -8/Scraptown | Visited Abandonware Association 6650 | -8/Scraptown | Learned abandonware demo "MELTYB.EXE" 6650 | -8/Scraptown | Learned abandonware demo "REBOOT5.EXE" 6677 | -8/Scraptown | Civil war broke out across Scraptown 6705 | -8/Scraptown | Visited Scrapoid Pod Storage 6742 | -8/Scraptown | Lost 9 allies 6752 | -8/Scraptown | Identified exit to Factory 6823 | -8/Scraptown | Lost 6 allies 6890 | -8/Scraptown | Found Scrap Suit 6901 | -8/Scraptown | Found Scrap Suit 6902 | -8/Scraptown | Lost 9 allies 6905 | -8/Scraptown | Entered Factory 6905 | -6/Factory | Evolved 8 slots: Power x1, Propulsion x3, Utility x4 6906 | -6/Factory | Loaded intel: 26 terminal locations 7119 | -6/Factory | Loaded intel: 8 recycling unit locations 7366 | -6/Factory | Lost 13 parts (2p3n3u5w) 7369 | -6/Factory | System corruption reached 10% 7629 | -6/Factory | Build established: Scavenger-Mutant 7931 | -6/Factory | System corruption reached 30% 8036 | -6/Factory | Scrapoid reinforcements arrived 8072 | -6/Factory | Identified exit to Lower Caves 8106 | -6/Factory | Lost 5 allies 8127 | -6/Factory | Core integrity fell below 50% 8258 | -6/Factory | Garrison activated, responded to threat 8422 | -6/Factory | Lost 11 parts (2p4n3u2w) 8473 | -6/Factory | Core integrity fell below 20% 8499 | -6/Factory | Lost 6 parts (1n3u2w) 8630 | -6/Factory | Entered Lower Caves 8673 | -6/Lower Caves | Build established: Mutant 8746 | -6/Lower Caves | Encountered a Warlord checkpoint 8902 | -6/Lower Caves | Destroyed by G-50 Soldier with Heavy Laser Last Messages --------------- 08681_ G/9LO36M7:AG|G74SMBZ2%GSQ%N3PJT 08697_ System corrupted: Energy discharge (-31). 08718_ D5=9CR0N,AQ,W9E%8DGLKS9%FPQ2 08746_ J KVWK>|#O%C|KHA|EBJUPQW6FYNTC 08746_ RQ-QU1(M): "If you spot any more Unaware lurking around the area, let us know." 08762_ RY#S|ELRJYNUW0